[Event "*** Titled Tuesday Blitz"]
[Site "Chess.com"]
[Date "2020.05.26"]
[Round "1"]
[White "Chessmasterzt"]
[Black "CyberdelChess"]
[Result "1-0"]
[WhiteElo "2589"]
[BlackElo "2243"]
[TimeControl "180+1"]
[EndTime "10:06:21 PDT"]
[Termination "Chessmasterzt won on time"]

1. Nf3 {[%clk 0:02:59]} 1... Nf6 {[%clk 0:02:59.2]} 2. g3 {[%clk 0:02:59.9]}
2... g6 {[%clk 0:02:58.9]} 3. Bg2 {[%clk 0:03:00.8]} 3... Bg7 {[%clk 0:02:59.4]}
4. b3 {[%clk 0:03:01.7]} 4... Ne4 {[%clk 0:02:58.3]} 5. c3 {[%clk 0:03:01.6]}
5... d5 {[%clk 0:02:58.1]} 6. O-O {[%clk 0:02:57.4]} 6... O-O {[%clk 0:02:56.1]}
7. Bb2 {[%clk 0:02:57.8]} 7... c5 {[%clk 0:02:54.3]} 8. d3 {[%clk 0:02:58]} 8...
Nf6 {[%clk 0:02:52.9]} 9. c4 {[%clk 0:02:52.5]} 9... d4 {[%clk 0:02:38.2]} 10.
b4 {[%clk 0:02:51.7]} 10... Nfd7 {[%clk 0:02:29.3]} 11. Nbd2 {[%clk 0:02:44.3]}
11... e5 {[%clk 0:02:28.9]} 12. b5 {[%clk 0:02:30.1]} 12... f6 {[%clk
0:01:54.8]} 13. e4 {[%clk 0:02:28.3]} 13... f5 {[%clk 0:01:13.3]} 14. exf5
{[%clk 0:02:17.4]} 14... gxf5 {[%clk 0:01:14.2]} 15. Qc2 {[%clk 0:01:53.6]}
15... Kh8 {[%clk 0:01:12.2]} 16. Rae1 {[%clk 0:01:54.1]} 16... a6 {[%clk
0:01:09]} 17. a4 {[%clk 0:01:51.7]} 17... axb5 {[%clk 0:01:06]} 18. cxb5 {[%clk
0:01:52.6]} 18... Qc7 {[%clk 0:00:49.3]} 19. Nc4 {[%clk 0:01:49]} 19... Re8
{[%clk 0:00:40.2]} 20. Ng5 {[%clk 0:01:41]} 20... Nf6 {[%clk 0:00:36.9]} 21. a5
{[%clk 0:01:40.9]} 21... Nbd7 {[%clk 0:00:28.3]} 22. Bc1 {[%clk 0:01:40.9]}
22... Rxa5 {[%clk 0:00:25.6]} 23. Nxa5 {[%clk 0:01:35.4]} 23... Qxa5 {[%clk
0:00:26.5]} 24. Qb3 {[%clk 0:01:35.3]} 24... h6 {[%clk 0:00:21.4]} 25. Nf7+
{[%clk 0:01:33.4]} 25... Kh7 {[%clk 0:00:21.2]} 26. Nd6 {[%clk 0:01:34.3]} 26...
Rf8 {[%clk 0:00:20.6]} 27. Nxf5 {[%clk 0:01:32.7]} 27... Qc7 {[%clk 0:00:14.9]}
28. Nxg7 {[%clk 0:01:25.5]} 28... Kxg7 {[%clk 0:00:15.8]} 29. Qe6 {[%clk
0:01:25.6]} 29... Re8 {[%clk 0:00:12.4]} 30. Qh3 {[%clk 0:01:25.5]} 30... Qd6
{[%clk 0:00:12.4]} 31. Qxh6+ {[%clk 0:01:24.8]} 31... Kg8 {[%clk 0:00:12]} 32.
Qg6+ {[%clk 0:01:24.3]} 32... Kh8 {[%clk 0:00:10.8]} 33. f4 {[%clk 0:01:18]}
33... Rf8 {[%clk 0:00:05.8]} 34. Qh6+ {[%clk 0:01:14.5]} 34... Kg8 {[%clk
0:00:05.5]} 35. Qg6+ {[%clk 0:01:15]} 35... Kh8 {[%clk 0:00:05.5]} 36. fxe5
{[%clk 0:01:15.4]} 36... Nxe5 {[%clk 0:00:05.9]} 37. Qh6+ {[%clk 0:01:15.8]}
37... Kg8 {[%clk 0:00:05.8]} 38. Bf4 {[%clk 0:01:12.7]} 1-0

[Event "*** Titled Tuesday Blitz"]
[Site "Chess.com"]
[Date "2020.05.26"]
[Round "1"]
[White "ChessQueen"]
[Black "SHIVACalypso"]
[Result "1-0"]
[WhiteElo "2622"]
[BlackElo "2288"]
[TimeControl "180+1"]
[EndTime "10:06:22 PDT"]
[Termination "ChessQueen won by resignation"]

1. e4 {[%clk 0:03:00.9]} 1... e6 {[%clk 0:02:57.4]} 2. d4 {[%clk 0:03:00.4]}
2... d5 {[%clk 0:02:57.2]} 3. exd5 {[%clk 0:03:00.8]} 3... exd5 {[%clk
0:02:55.9]} 4. Nf3 {[%clk 0:03:01.4]} 4... Nf6 {[%clk 0:02:54.5]} 5. Bd3 {[%clk
0:03:00.3]} 5... Bd6 {[%clk 0:02:54.7]} 6. Qe2+ {[%clk 0:03:00.7]} 6... Qe7
{[%clk 0:02:54.2]} 7. Qxe7+ {[%clk 0:03:00.8]} 7... Kxe7 {[%clk 0:02:55.1]} 8.
O-O {[%clk 0:02:59.2]} 8... Re8 {[%clk 0:02:55]} 9. h3 {[%clk 0:02:56.5]} 9...
Kf8 {[%clk 0:02:54.9]} 10. Nc3 {[%clk 0:02:51.5]} 10... c6 {[%clk 0:02:54.4]}
11. Ne2 {[%clk 0:02:51.2]} 11... Ne4 {[%clk 0:02:47.7]} 12. Bf4 {[%clk
0:02:46.6]} 12... Bxf4 {[%clk 0:02:34.7]} 13. Nxf4 {[%clk 0:02:47.5]} 13... Nd7
{[%clk 0:02:34]} 14. Rfe1 {[%clk 0:02:46]} 14... Ndf6 {[%clk 0:02:33.7]} 15. Re3
{[%clk 0:02:38.4]} 15... Bf5 {[%clk 0:02:25.2]} 16. Rae1 {[%clk 0:02:35.2]}
16... Nd6 {[%clk 0:02:23.9]} 17. Ne5 {[%clk 0:02:28.9]} 17... Bxd3 {[%clk
0:02:21.7]} 18. Rxd3 {[%clk 0:02:15.4]} 18... Re7 {[%clk 0:02:04.1]} 19. g4
{[%clk 0:02:09.1]} 19... Rae8 {[%clk 0:02:00.1]} 20. Rde3 {[%clk 0:02:09.4]}
20... Nd7 {[%clk 0:01:40.6]} 21. b3 {[%clk 0:02:06.7]} 21... Nxe5 {[%clk
0:01:06.5]} 22. dxe5 {[%clk 0:02:06.3]} 22... Ne4 {[%clk 0:01:06.6]} 23. f3
{[%clk 0:02:05.4]} 23... Nc5 {[%clk 0:01:02.7]} 24. b4 {[%clk 0:01:50.4]} 24...
Ne6 {[%clk 0:00:53.7]} 25. Nxe6+ {[%clk 0:01:30]} 25... Rxe6 {[%clk 0:00:54.6]}
26. Kf2 {[%clk 0:01:30]} 26... f6 {[%clk 0:00:34.7]} 27. exf6 {[%clk 0:01:26.5]}
27... Rxe3 {[%clk 0:00:33.1]} 28. fxg7+ {[%clk 0:01:26.7]} 28... Kxg7 {[%clk
0:00:32.6]} 29. Rxe3 {[%clk 0:01:27.6]} 29... Rf8 {[%clk 0:00:32.7]} 30. Re7+
{[%clk 0:01:26.5]} 30... Rf7 {[%clk 0:00:32.2]} 31. Rxf7+ {[%clk 0:01:26.1]}
31... Kxf7 {[%clk 0:00:33.1]} 32. Ke3 {[%clk 0:01:24.8]} 32... Ke6 {[%clk
0:00:33.5]} 33. Kd4 {[%clk 0:01:20.6]} 33... Kd6 {[%clk 0:00:32.7]} 34. f4
{[%clk 0:01:09.2]} 34... b6 {[%clk 0:00:31.3]} 35. h4 {[%clk 0:01:08.4]} 35...
c5+ {[%clk 0:00:31.7]} 36. bxc5+ {[%clk 0:01:08.8]} 36... bxc5+ {[%clk
0:00:32.6]} 37. Kd3 {[%clk 0:01:07.8]} 37... Ke6 {[%clk 0:00:32.7]} 38. h5
{[%clk 0:01:02.2]} 38... Kf6 {[%clk 0:00:29.7]} 39. Kc3 {[%clk 0:00:57.4]} 39...
Ke6 {[%clk 0:00:28.7]} 40. Kb3 {[%clk 0:00:57.3]} 1-0

[Event "*** Titled Tuesday Blitz"]
[Site "Chess.com"]
[Date "2020.05.26"]
[Round "1"]
[White "JLRHei"]
[Black "aleksandrovaleksei"]
[Result "0-1"]
[WhiteElo "2319"]
[BlackElo "2685"]
[TimeControl "180+1"]
[EndTime "10:06:23 PDT"]
[Termination "aleksandrovaleksei won by resignation"]

1. d4 {[%clk 0:03:00.9]} 1... Nf6 {[%clk 0:02:59.5]} 2. c4 {[%clk 0:03:01.4]}
2... e6 {[%clk 0:02:59.4]} 3. Nf3 {[%clk 0:03:01.9]} 3... d5 {[%clk 0:02:59.1]}
4. g3 {[%clk 0:03:02.2]} 4... dxc4 {[%clk 0:02:58.6]} 5. Bg2 {[%clk 0:03:02.6]}
5... Nc6 {[%clk 0:02:58.4]} 6. O-O {[%clk 0:02:53.5]} 6... Rb8 {[%clk
0:02:57.2]} 7. Nc3 {[%clk 0:02:52.4]} 7... a6 {[%clk 0:02:56.5]} 8. a4 {[%clk
0:02:40.3]} 8... Be7 {[%clk 0:02:50.4]} 9. e4 {[%clk 0:02:23.3]} 9... O-O {[%clk
0:02:42.8]} 10. d5 {[%clk 0:02:19.8]} 10... Na5 {[%clk 0:02:35.2]} 11. Bf4
{[%clk 0:02:07.4]} 11... Nb3 {[%clk 0:02:18.8]} 12. Ra2 {[%clk 0:01:53.5]} 12...
exd5 {[%clk 0:02:15.5]} 13. exd5 {[%clk 0:01:54.4]} 13... Bd6 {[%clk 0:02:01.3]}
14. Bg5 {[%clk 0:01:35.2]} 14... h6 {[%clk 0:01:59.8]} 15. Bxf6 {[%clk
0:01:34.9]} 15... Qxf6 {[%clk 0:01:58.3]} 16. Ne4 {[%clk 0:01:35.4]} 16... Qe7
{[%clk 0:01:46.9]} 17. Re1 {[%clk 0:01:30.5]} 17... Bb4 {[%clk 0:01:46.3]} 18.
Nc3 {[%clk 0:01:26.6]} 18... Qf6 {[%clk 0:01:43.1]} 19. Ne5 {[%clk 0:01:25.5]}
19... Bf5 {[%clk 0:01:37]} 20. Nxc4 {[%clk 0:01:21.9]} 20... Bxc3 {[%clk
0:01:33.6]} 21. bxc3 {[%clk 0:01:15.3]} 21... Qxc3 {[%clk 0:01:30.3]} 22. Ne3
{[%clk 0:01:06.9]} 22... Nd4 {[%clk 0:00:35.2]} 23. Rd2 {[%clk 0:00:45.2]} 23...
c5 {[%clk 0:00:28]} 24. dxc6 {[%clk 0:00:35.8]} 24... bxc6 {[%clk 0:00:27.8]}
25. Rxd4 {[%clk 0:00:34.1]} 25... Rb1 {[%clk 0:00:27.1]} 26. Qxb1 {[%clk
0:00:23.1]} 26... Bxb1 {[%clk 0:00:26]} 27. Rc4 {[%clk 0:00:23.1]} 27... Qxe1+
{[%clk 0:00:25.6]} 0-1

[Event "*** Titled Tuesday Blitz"]
[Site "Chess.com"]
[Date "2020.05.26"]
[Round "1"]
[White "MNyuyu"]
[Black "GMStefanova"]
[Result "0-1"]
[WhiteElo "2293"]
[BlackElo "2629"]
[TimeControl "180+1"]
[EndTime "10:06:24 PDT"]
[Termination "GMStefanova won by checkmate"]

1. d4 {[%clk 0:03:00.9]} 1... d5 {[%clk 0:02:59.4]} 2. Nf3 {[%clk 0:03:00.6]}
2... Nf6 {[%clk 0:02:58.6]} 3. Bf4 {[%clk 0:03:00.5]} 3... e6 {[%clk 0:02:56.2]}
4. e3 {[%clk 0:03:00.7]} 4... Bd6 {[%clk 0:02:54.4]} 5. Bg3 {[%clk 0:03:00.6]}
5... O-O {[%clk 0:02:48.1]} 6. Bd3 {[%clk 0:02:59.9]} 6... c5 {[%clk 0:02:47.7]}
7. c3 {[%clk 0:02:59.4]} 7... Qc7 {[%clk 0:02:44.7]} 8. Nbd2 {[%clk 0:02:57.8]}
8... Nbd7 {[%clk 0:02:43.8]} 9. Qe2 {[%clk 0:02:54.4]} 9... e5 {[%clk
0:02:39.9]} 10. dxe5 {[%clk 0:02:54.3]} 10... Nxe5 {[%clk 0:02:39.2]} 11. Nxe5
{[%clk 0:02:54]} 11... Bxe5 {[%clk 0:02:38.6]} 12. O-O-O {[%clk 0:02:52]} 12...
c4 {[%clk 0:02:22.3]} 13. Bc2 {[%clk 0:02:50.9]} 13... b5 {[%clk 0:02:20.5]} 14.
Bxe5 {[%clk 0:02:49.6]} 14... Qxe5 {[%clk 0:02:19.4]} 15. Nf3 {[%clk 0:02:49.3]}
15... Qe7 {[%clk 0:02:10]} 16. Nd4 {[%clk 0:02:47.6]} 16... Bd7 {[%clk 0:02:02]}
17. Bf5 {[%clk 0:02:43.2]} 17... Rab8 {[%clk 0:01:54.5]} 18. Bxd7 {[%clk
0:02:42]} 18... Qxd7 {[%clk 0:01:53.6]} 19. a3 {[%clk 0:02:41.4]} 19... a5
{[%clk 0:01:52.8]} 20. f3 {[%clk 0:02:40.8]} 20... b4 {[%clk 0:01:52.3]} 21.
axb4 {[%clk 0:02:39.4]} 21... axb4 {[%clk 0:01:51.9]} 22. Rd2 {[%clk 0:02:35.2]}
22... Qa4 {[%clk 0:01:44.4]} 23. cxb4 {[%clk 0:02:30.9]} 23... Rxb4 {[%clk
0:01:40.7]} 24. Rc2 {[%clk 0:02:29]} 24... Rfb8 {[%clk 0:01:35.9]} 25. Rd1
{[%clk 0:02:25.5]} 25... Nd7 {[%clk 0:01:21.3]} 26. Kd2 {[%clk 0:02:23.3]} 26...
Rxb2 {[%clk 0:01:18.4]} 27. Rc1 {[%clk 0:02:23]} 27... Nc5 {[%clk 0:01:12.2]}
28. Ke1 {[%clk 0:02:22.5]} 28... Nd3+ {[%clk 0:01:05.3]} 29. Qxd3 {[%clk
0:02:22.3]} 29... cxd3 {[%clk 0:01:04.8]} 30. Rc8+ {[%clk 0:02:21.7]} 30... Qe8
{[%clk 0:01:04.6]} 31. Rxe8+ {[%clk 0:02:20.8]} 31... Rxe8 {[%clk 0:01:04.1]}
32. Rd1 {[%clk 0:02:20.7]} 32... Rxe3+ {[%clk 0:01:00.9]} 33. Kf1 {[%clk
0:02:18.9]} 33... g6 {[%clk 0:01:00.9]} 34. h4 {[%clk 0:02:15.2]} 34... Ree2
{[%clk 0:00:58.3]} 35. Rxd3 {[%clk 0:02:11.9]} 35... Rxg2 {[%clk 0:00:58.1]} 36.
Re3 {[%clk 0:02:06.6]} 36... Rh2 {[%clk 0:00:54.3]} 37. Kg1 {[%clk 0:02:05.2]}
37... Rxh4 {[%clk 0:00:53.1]} 38. Ne2 {[%clk 0:02:04.7]} 38... Rc4 {[%clk
0:00:51.5]} 39. Kf1 {[%clk 0:02:04]} 39... Rcc2 {[%clk 0:00:49.4]} 40. Nd4
{[%clk 0:02:02.2]} 40... Rc1+ {[%clk 0:00:47.1]} 41. Re1 {[%clk 0:02:02]} 41...
Rxe1+ {[%clk 0:00:47.2]} 42. Kxe1 {[%clk 0:02:01.2]} 42... h5 {[%clk 0:00:47.4]}
43. Nc6 {[%clk 0:01:59.6]} 43... Kg7 {[%clk 0:00:46.8]} 44. Ne7 {[%clk
0:01:58.7]} 44... d4 {[%clk 0:00:46.5]} 45. Nd5 {[%clk 0:01:58.3]} 45... h4
{[%clk 0:00:45.6]} 46. Kf1 {[%clk 0:01:57.5]} 46... g5 {[%clk 0:00:44.9]} 47.
Ne7 {[%clk 0:01:55.2]} 47... Kf6 {[%clk 0:00:43.8]} 48. Nd5+ {[%clk 0:01:54.7]}
48... Ke5 {[%clk 0:00:43.8]} 49. Ne7 {[%clk 0:01:54.2]} 49... Kf4 {[%clk
0:00:41.8]} 50. Nc6 {[%clk 0:01:53.4]} 50... d3 {[%clk 0:00:39.8]} 51. Nd4
{[%clk 0:01:52.7]} 51... Rb1+ {[%clk 0:00:34.5]} 52. Kf2 {[%clk 0:01:52.2]}
52... d2 {[%clk 0:00:34.5]} 53. Ne2+ {[%clk 0:01:50.5]} 53... Ke5 {[%clk
0:00:33.5]} 54. f4+ {[%clk 0:01:50.2]} 54... gxf4 {[%clk 0:00:32.6]} 55. Nxf4
{[%clk 0:01:44.1]} 55... Kxf4 {[%clk 0:00:29.8]} 56. Kg2 {[%clk 0:01:42.8]}
56... d1=Q {[%clk 0:00:28.6]} 57. Kh3 {[%clk 0:01:42]} 57... Qf3+ {[%clk
0:00:27]} 58. Kxh4 {[%clk 0:01:40.1]} 58... Rh1# {[%clk 0:00:26.9]} 0-1

[Event "*** Titled Tuesday Blitz"]
[Site "Chess.com"]
[Date "2020.05.26"]
[Round "1"]
[White "Doraemon7"]
[Black "RobPeresian"]
[Result "1-0"]
[WhiteElo "2634"]
[BlackElo "2298"]
[TimeControl "180+1"]
[EndTime "10:06:29 PDT"]
[Termination "Doraemon7 won on time"]

1. Nf3 {[%clk 0:03:00.8]} 1... d5 {[%clk 0:02:59.3]} 2. g3 {[%clk 0:02:55.1]}
2... Bg4 {[%clk 0:02:58.4]} 3. Bg2 {[%clk 0:02:56]} 3... Nd7 {[%clk 0:02:55.6]}
4. d4 {[%clk 0:02:54.1]} 4... c6 {[%clk 0:02:52.2]} 5. O-O {[%clk 0:02:54.5]}
5... Ngf6 {[%clk 0:02:49.6]} 6. Nbd2 {[%clk 0:02:45.2]} 6... g6 {[%clk
0:02:42.1]} 7. b3 {[%clk 0:02:41.6]} 7... Bg7 {[%clk 0:02:40.9]} 8. Bb2 {[%clk
0:02:42.2]} 8... O-O {[%clk 0:02:34]} 9. h3 {[%clk 0:02:42.4]} 9... Bxf3 {[%clk
0:02:32.3]} 10. Nxf3 {[%clk 0:02:43.2]} 10... Ne4 {[%clk 0:02:28.3]} 11. c4
{[%clk 0:02:38.2]} 11... a5 {[%clk 0:02:28]} 12. Qc2 {[%clk 0:02:36.4]} 12... a4
{[%clk 0:02:23.6]} 13. Rac1 {[%clk 0:01:59]} 13... axb3 {[%clk 0:02:18.1]} 14.
Qxb3 {[%clk 0:01:59.9]} 14... Qb6 {[%clk 0:02:18]} 15. cxd5 {[%clk 0:01:57.4]}
15... Qxb3 {[%clk 0:02:17.4]} 16. axb3 {[%clk 0:01:57.9]} 16... cxd5 {[%clk
0:02:08.4]} 17. Rc7 {[%clk 0:01:57]} 17... Rfd8 {[%clk 0:01:26.8]} 18. Rxb7
{[%clk 0:01:35.6]} 18... Ra2 {[%clk 0:01:24.9]} 19. Rb1 {[%clk 0:01:34.2]} 19...
e6 {[%clk 0:01:08.5]} 20. Bf1 {[%clk 0:01:05.8]} 20... h6 {[%clk 0:00:23.9]} 21.
e3 {[%clk 0:00:58.4]} 21... g5 {[%clk 0:00:20.3]} 22. Bb5 {[%clk 0:00:58.1]}
22... Nf8 {[%clk 0:00:18.3]} 23. Rb6 {[%clk 0:00:51.1]} 23... Rc8 {[%clk
0:00:14.7]} 24. Ra6 {[%clk 0:00:49.1]} 24... Rxa6 {[%clk 0:00:12.1]} 25. Bxa6
{[%clk 0:00:50]} 25... Rc2 {[%clk 0:00:11.3]} 26. Bd3 {[%clk 0:00:50.5]} 26...
Rc7 {[%clk 0:00:08.6]} 27. b4 {[%clk 0:00:50]} 27... Nd7 {[%clk 0:00:06.5]} 28.
b5 {[%clk 0:00:50.3]} 28... Nb6 {[%clk 0:00:06.5]} 29. Bxe4 {[%clk 0:00:48.5]}
29... dxe4 {[%clk 0:00:06]} 30. Nd2 {[%clk 0:00:49.4]} 30... f5 {[%clk
0:00:05.3]} 31. Ba3 {[%clk 0:00:49.3]} 31... Rc2 {[%clk 0:00:04.4]} 32. Bc5
{[%clk 0:00:49.4]} 1-0

[Event "*** Titled Tuesday Blitz"]
[Site "Chess.com"]
[Date "2020.05.26"]
[Round "1"]
[White "ElliPaehtz"]
[Black "TheSodabread"]
[Result "1-0"]
[WhiteElo "2478"]
[BlackElo "2008"]
[TimeControl "180+1"]
[EndTime "10:06:29 PDT"]
[Termination "ElliPaehtz won on time"]

1. d4 {[%clk 0:02:58.7]} 1... Nf6 {[%clk 0:02:58.2]} 2. Nf3 {[%clk 0:02:58]}
2... g6 {[%clk 0:02:57.1]} 3. Bg5 {[%clk 0:02:56.8]} 3... Bg7 {[%clk 0:02:57.3]}
4. Nbd2 {[%clk 0:02:55.7]} 4... d5 {[%clk 0:02:55.9]} 5. c3 {[%clk 0:02:55.1]}
5... O-O {[%clk 0:02:54.2]} 6. e3 {[%clk 0:02:54.4]} 6... b6 {[%clk 0:02:53.7]}
7. Be2 {[%clk 0:02:51.3]} 7... Ba6 {[%clk 0:02:46.9]} 8. Bxa6 {[%clk 0:02:48.8]}
8... Nxa6 {[%clk 0:02:47.8]} 9. O-O {[%clk 0:02:48.1]} 9... c5 {[%clk
0:02:47.4]} 10. Ne5 {[%clk 0:02:44.2]} 10... Nb8 {[%clk 0:02:37.9]} 11. Qa4
{[%clk 0:02:38.6]} 11... Nfd7 {[%clk 0:02:06.5]} 12. Nd3 {[%clk 0:02:28.1]}
12... f6 {[%clk 0:01:48.1]} 13. Bh4 {[%clk 0:02:22.9]} 13... Qc7 {[%clk
0:01:43.9]} 14. Bg3 {[%clk 0:02:19.7]} 14... Qc6 {[%clk 0:01:43.1]} 15. Qa3
{[%clk 0:02:14.9]} 15... e5 {[%clk 0:01:35.2]} 16. Rac1 {[%clk 0:01:57.7]} 16...
e4 {[%clk 0:01:16.4]} 17. Nf4 {[%clk 0:01:54.3]} 17... g5 {[%clk 0:01:01.7]} 18.
Ne2 {[%clk 0:01:53.4]} 18... h5 {[%clk 0:00:53.2]} 19. h4 {[%clk 0:01:45]} 19...
Rf7 {[%clk 0:00:29.4]} 20. c4 {[%clk 0:01:43.2]} 20... dxc4 {[%clk 0:00:16.7]}
21. Nxc4 {[%clk 0:01:41.7]} 21... Nf8 {[%clk 0:00:14.8]} 22. Nd6 {[%clk
0:01:40.7]} 22... Rd7 {[%clk 0:00:11.6]} 23. dxc5 {[%clk 0:01:39.9]} 23... bxc5
{[%clk 0:00:11.8]} 24. Rxc5 {[%clk 0:01:38.4]} 24... Qb6 {[%clk 0:00:08.9]} 25.
Nc4 {[%clk 0:01:31.8]} 25... Qe6 {[%clk 0:00:07.9]} 26. Nd4 {[%clk 0:01:29.6]}
26... Qf7 {[%clk 0:00:07.3]} 27. Nf5 {[%clk 0:01:25.1]} 27... Ng6 {[%clk
0:00:05.1]} 28. Rc8+ {[%clk 0:01:22.1]} 28... Kh7 {[%clk 0:00:04.6]} 29. Ncd6
{[%clk 0:01:21.2]} 29... Qe6 {[%clk 0:00:04.4]} 30. Nxg7 {[%clk 0:01:11.9]}
30... Rxg7 {[%clk 0:00:03.2]} 31. hxg5 {[%clk 0:01:10.1]} 31... fxg5 {[%clk
0:00:04.1]} 32. Qc3 {[%clk 0:01:07.2]} 32... h4 {[%clk 0:00:03.9]} 33. Bh2
{[%clk 0:01:06.8]} 33... g4 {[%clk 0:00:04.1]} 34. Ne8 {[%clk 0:01:02.8]} 34...
Rg8 {[%clk 0:00:02.4]} 35. Nf6+ {[%clk 0:00:59.7]} 1-0

[Event "*** Titled Tuesday Blitz"]
[Site "Chess.com"]
[Date "2020.05.26"]
[Round "1"]
[White "Jadeit90"]
[Black "Sippp"]
[Result "0-1"]
[WhiteElo "2323"]
[BlackElo "2685"]
[TimeControl "180+1"]
[EndTime "10:06:30 PDT"]
[Termination "Sippp won by resignation"]

1. g3 {[%clk 0:03:00.9]} 1... c5 {[%clk 0:02:58.5]} 2. Bg2 {[%clk 0:03:01.2]}
2... Nc6 {[%clk 0:02:58.7]} 3. e4 {[%clk 0:03:01.7]} 3... g6 {[%clk 0:02:59]} 4.
Nc3 {[%clk 0:03:02.6]} 4... Bg7 {[%clk 0:02:59.3]} 5. d3 {[%clk 0:03:03.5]} 5...
Nf6 {[%clk 0:02:58.9]} 6. Be3 {[%clk 0:03:04.4]} 6... d6 {[%clk 0:02:58.8]} 7.
h3 {[%clk 0:03:04.9]} 7... Rb8 {[%clk 0:02:58]} 8. a4 {[%clk 0:03:03.9]} 8...
O-O {[%clk 0:02:57]} 9. Nge2 {[%clk 0:03:04.2]} 9... a6 {[%clk 0:02:56.1]} 10.
O-O {[%clk 0:03:03.9]} 10... Nd7 {[%clk 0:02:55.8]} 11. d4 {[%clk 0:03:03.7]}
11... cxd4 {[%clk 0:02:51.7]} 12. Nxd4 {[%clk 0:03:04.6]} 12... Nde5 {[%clk
0:02:33.2]} 13. b3 {[%clk 0:02:59.3]} 13... Nxd4 {[%clk 0:02:23.7]} 14. Bxd4
{[%clk 0:02:58.6]} 14... Be6 {[%clk 0:02:22.6]} 15. f4 {[%clk 0:02:57.9]} 15...
Nc6 {[%clk 0:02:21.2]} 16. Bxg7 {[%clk 0:02:57.8]} 16... Kxg7 {[%clk 0:02:22.1]}
17. f5 {[%clk 0:02:45]} 17... Qa5 {[%clk 0:02:12.5]} 18. Qd3 {[%clk 0:02:03.4]}
18... Bd7 {[%clk 0:02:10.2]} 19. Nd5 {[%clk 0:02:02.3]} 19... f6 {[%clk
0:02:01.7]} 20. c4 {[%clk 0:01:46]} 20... Qc5+ {[%clk 0:01:59.6]} 21. Kh2 {[%clk
0:01:45.6]} 21... Nb4 {[%clk 0:01:58.5]} 22. Nxb4 {[%clk 0:01:29.5]} 22... Qxb4
{[%clk 0:01:59.4]} 23. Rad1 {[%clk 0:01:17.7]} 23... Bc6 {[%clk 0:01:58.6]} 24.
fxg6 {[%clk 0:01:17]} 24... hxg6 {[%clk 0:01:57.5]} 25. e5 {[%clk 0:00:49.7]}
25... fxe5 {[%clk 0:01:44.1]} 26. Rxf8 {[%clk 0:00:42.4]} 26... Rxf8 {[%clk
0:01:43.2]} 27. Bxc6 {[%clk 0:00:42.5]} 27... bxc6 {[%clk 0:01:44.1]} 28. Rd2
{[%clk 0:00:42]} 28... Qc5 {[%clk 0:01:26.6]} 29. h4 {[%clk 0:00:40.5]} 29...
Rf2+ {[%clk 0:01:21.9]} 30. Rxf2 {[%clk 0:00:40.3]} 30... Qxf2+ {[%clk
0:01:22.7]} 31. Kh3 {[%clk 0:00:40.4]} 31... Qf5+ {[%clk 0:01:15.6]} 32. Qxf5
{[%clk 0:00:38.7]} 32... gxf5 {[%clk 0:01:15.6]} 33. Kg2 {[%clk 0:00:39.1]}
33... c5 {[%clk 0:01:13.6]} 34. Kf3 {[%clk 0:00:38.3]} 34... Kg6 {[%clk
0:01:09.2]} 35. Ke3 {[%clk 0:00:37.8]} 35... Kh5 {[%clk 0:01:06.7]} 36. Kf3
{[%clk 0:00:38.1]} 36... e6 {[%clk 0:01:05.3]} 37. a5 {[%clk 0:00:37.9]} 37...
Kg6 {[%clk 0:01:02.3]} 38. Ke3 {[%clk 0:00:37]} 38... e4 {[%clk 0:00:59.1]} 39.
Kf4 {[%clk 0:00:37]} 39... e5+ {[%clk 0:00:58.8]} 40. Ke3 {[%clk 0:00:37.2]}
40... Kh5 {[%clk 0:00:58.4]} 41. Ke2 {[%clk 0:00:37.4]} 41... Kg4 {[%clk
0:00:58.2]} 42. Kf2 {[%clk 0:00:37.4]} 42... f4 {[%clk 0:00:58.7]} 43. gxf4
{[%clk 0:00:37.1]} 43... exf4 {[%clk 0:00:59.6]} 0-1

[Event "*** Titled Tuesday Blitz"]
[Site "Chess.com"]
[Date "2020.05.26"]
[Round "1"]
[White "1Przemyslaw1"]
[Black "Raja3401"]
[Result "0-1"]
[WhiteElo "2342"]
[BlackElo "2706"]
[TimeControl "180+1"]
[EndTime "10:06:31 PDT"]
[Termination "Raja3401 won on time"]

1. d4 {[%clk 0:02:59.8]} 1... Nf6 {[%clk 0:02:57.1]} 2. c4 {[%clk 0:02:58.8]}
2... e6 {[%clk 0:02:38.9]} 3. Nf3 {[%clk 0:02:55.6]} 3... d5 {[%clk 0:02:36.2]}
4. Nc3 {[%clk 0:02:53.4]} 4... c6 {[%clk 0:02:31.9]} 5. e3 {[%clk 0:02:47.3]}
5... Nbd7 {[%clk 0:02:19.4]} 6. Qc2 {[%clk 0:02:46.8]} 6... Bd6 {[%clk
0:02:16.8]} 7. Bd3 {[%clk 0:02:46.2]} 7... O-O {[%clk 0:02:16.9]} 8. O-O {[%clk
0:02:46.1]} 8... dxc4 {[%clk 0:02:15.1]} 9. Bxc4 {[%clk 0:02:46.1]} 9... b5
{[%clk 0:02:14.6]} 10. Be2 {[%clk 0:02:45.3]} 10... Bb7 {[%clk 0:02:14.3]} 11.
Rd1 {[%clk 0:02:43.7]} 11... Qc7 {[%clk 0:02:08]} 12. e4 {[%clk 0:02:33.4]}
12... e5 {[%clk 0:02:05.8]} 13. g3 {[%clk 0:02:21.6]} 13... Rfe8 {[%clk
0:02:01.3]} 14. Bg5 {[%clk 0:02:12]} 14... exd4 {[%clk 0:01:51.9]} 15. Nxd4
{[%clk 0:02:07.6]} 15... b4 {[%clk 0:01:49.4]} 16. Nf5 {[%clk 0:01:54.4]} 16...
Bc5 {[%clk 0:01:46.3]} 17. Bf4 {[%clk 0:01:00.5]} 17... Qa5 {[%clk 0:01:19.6]}
18. Na4 {[%clk 0:00:52.7]} 18... Bxf2+ {[%clk 0:01:16.2]} 19. Kxf2 {[%clk
0:00:50.4]} 19... Nxe4+ {[%clk 0:01:14.5]} 20. Kf1 {[%clk 0:00:48.3]} 20... Qxf5
{[%clk 0:01:14.2]} 21. Bd3 {[%clk 0:00:15]} 21... c5 {[%clk 0:01:05.6]} 22. Kg1
{[%clk 0:00:14.7]} 22... Ndf6 {[%clk 0:00:59.5]} 23. Rac1 {[%clk 0:00:10.2]}
23... Rad8 {[%clk 0:00:55.9]} 24. Bf1 {[%clk 0:00:05.4]} 24... h6 {[%clk
0:00:50.5]} 25. b3 {[%clk 0:00:04.7]} 25... g5 {[%clk 0:00:48.2]} 26. Bc7 {[%clk
0:00:03.5]} 26... Rxd1 {[%clk 0:00:47.1]} 27. Rxd1 {[%clk 0:00:03.6]} 27... Nd5
{[%clk 0:00:45.6]} 0-1